bitfinex-derivatives/quotes_BTCF0:USTF0_20240824
["timestamp","ask_amount","ask_price","bid_price","bid_amount"]
[1724464461118,0.04664479,63838.0,63836.0,0.078271]
[1724464461316,0.04664479,63838.0,63837.0,0.078271]
[1724464461513,0.078269,63839.0,63830.0,0.40766641]
[1724464461712,0.04664369,63837.0,63831.0,0.04686641]
[1724464461916,0.04664369,63838.0,63837.0,0.078271]
[1724464463121,0.04664369,63838.0,63837.0,0.079271]
[1724464463421,0.078269,63839.0,63838.0,0.07827]
[1724464464121,0.08439713,63839.0,63838.0,0.07827]
[1724464464622,0.00612813,63839.0,63838.0,0.07827]
[1724464464824,0.04664371,63839.0,63838.0,0.07827]
[1724464465026,0.04664371,63839.0,63838.0,0.07927]
[1724464465226,0.04664371,63840.0,63839.0,0.078269]
[1724464465520,0.3608,63841.0,63839.0,0.078269]
[1724464466112,0.439066,63841.0,63839.0,0.078269]
[1724464466305,0.50148526,63841.0,63839.0,0.079269]
[1724464466516,0.42321926,63841.0,63839.0,0.001]
[1724464466718,0.3608,63841.0,63840.0,0.078267]
[1724464468020,0.3608,63841.0,63840.0,0.079267]
[1724464469019,0.3608,63841.0,63840.0,0.080267]
[1724464470124,0.40748679,63841.0,63840.0,0.080267]
[1724464470316,0.3608,63841.0,63840.0,0.080267]
[1724464470519,0.40749317,63841.0,63840.0,0.080267]
[1724464470918,0.40749446,63841.0,63840.0,0.080267]
[1724464471227,0.3608,63841.0,63840.0,0.080267]
[1724464471815,0.3608,63841.0,63840.0,0.12713341]
[1724464472617,0.3608,63841.0,63840.0,0.080267]
[1724464472819,0.40749446,63841.0,63840.0,0.080267]
[1724464474023,0.3608,63841.0,63840.0,0.080267]
[1724464474220,0.04669446,63844.0,63840.0,0.12713341]
[1724464474421,0.04669446,63846.0,63845.0,0.078261]
[1724464474622,0.04669446,63849.0,63845.0,0.46988]
[1724464474825,0.04669446,63851.0,63848.0,0.04683774]
[1724464475230,0.36690812,63857.0,63851.0,0.078254]
[1724464475231,0.04669446,63852.0,63851.0,0.078254]
[1724464475523,0.42932738,63857.0,63853.0,0.078251]
[1724464476031,0.42932738,63857.0,63854.0,0.07825]
[1724464476032,0.06241926,63856.0,63854.0,0.07825]
[1724464476432,0.42932738,63857.0,63854.0,0.07825]
[1724464476626,0.42932738,63857.0,63847.0,0.04683774]
[1724464476627,0.36690812,63857.0,63855.0,0.078249]
[1724464477527,0.36690812,63857.0,63856.0,0.078248]
[1724464477928,0.39227233,63857.0,63856.0,0.078248]
[1724464478227,0.38616421,63857.0,63856.0,0.078248]
[1724464478531,0.3608,63857.0,63856.0,0.126848]
[1724464478728,0.43856521,63857.0,63856.0,0.126848]
[1724464478929,0.3608,63857.0,63856.0,0.126848]
[1724464479122,0.07776521,63858.0,63856.0,0.127848]
[1724464479319,0.3608,63857.0,63856.0,0.127848]
[1724464479724,0.43856521,63857.0,63856.0,0.001]
[1724464479923,0.85596342,63857.0,63846.0,0.0486]
[1724464480126,0.85596342,63857.0,63845.0,0.07849594]
[1724464480127,0.3608,63847.0,63845.0,0.07849594]
[1724464480929,4e-05,63846.0,63845.0,0.07849594]
[1724464481436,4e-05,63846.0,63845.0,0.07949594]
[1724464481630,4e-05,63846.0,63845.0,0.08049594]
[1724464482428,0.0783,63846.0,63845.0,0.00123494]
[1724464482732,0.4391,63846.0,63845.0,0.00223494]
[1724464482926,0.4391,63846.0,63845.0,0.00123494]
[1724464483127,0.4391,63846.0,63845.0,0.00223494]
[1724464484238,0.90898,63846.0,63845.0,0.00223494]
[1724464484734,0.078261,63845.0,63827.0,0.04683774]
[1724464484933,0.3608,63828.0,63825.0,0.12512374]
[1724464485236,0.3608,63828.0,63825.0,0.04683774]
[1724464485428,0.3608,63828.0,63823.0,0.12512574]
[1724464485625,0.439082,63828.0,63823.0,0.12512574]
[1724464485826,0.439082,63828.0,63827.0,0.01]
[1724464487430,0.439082,63828.0,63827.0,0.011]
[1724464487636,0.439082,63828.0,63827.0,0.001]
[1724464488434,0.441082,63828.0,63827.0,0.002]
[1724464488837,0.441082,63828.0,63827.0,0.001]
[1724464489146,0.439082,63828.0,63827.0,0.001]
[1724464489347,0.439082,63828.0,63827.0,0.002]
[1724464489348,0.441082,63828.0,63827.0,0.002]
[1724464491039,0.04664655,63838.0,63828.0,0.47]
[1724464491241,0.078271,63837.0,63833.0,0.3608]
[1724464491445,0.40744655,63840.0,63832.0,0.04679376]
[1724464491446,0.439075,63834.0,63832.0,0.04679376]
[1724464491650,0.439075,63834.0,63829.0,0.07828]
[1724464491837,0.3608,63834.0,63828.0,0.04679376]
[1724464492144,0.3608,63834.0,63831.0,0.078278]
[1724464492343,0.04664655,63837.0,63833.0,0.3608]
[1724464492542,0.001,63838.0,63837.0,0.078271]
[1724464493040,0.04664655,63840.0,63839.0,0.078269]
[1724464493344,0.04664655,63840.0,63839.0,0.439069]
[1724464493744,0.04664655,63841.0,63840.0,0.078267]
[1724464494051,4e-05,63846.0,63840.0,0.078267]
[1724464494052,4e-05,63846.0,63844.0,0.078262]
[1724464494339,0.0466569,63859.0,63845.0,0.6733]
[1724464494653,0.0466569,63861.0,63859.0,0.078243]
[1724464494837,0.0466569,63862.0,63859.0,0.078243]
[1724464495433,0.0466569,63863.0,63859.0,0.078243]
[1724464495845,0.0466569,63861.0,63859.0,0.078243]
[1724464496047,0.3608,63860.0,63854.0,0.00023494]
[1724464496237,0.07773547,63859.0,63854.0,0.00023494]
[1724464496433,0.07773547,63858.0,63854.0,0.00023494]
[1724464496837,0.07773547,63857.0,63854.0,0.00023494]
[1724464497033,0.07773547,63858.0,63854.0,0.00023494]
[1724464497438,0.07773547,63858.0,63854.0,0.00123494]
[1724464497938,0.078248,63857.0,63854.0,0.00123494]
[1724464498642,0.078248,63857.0,63854.0,0.00223494]
[1724464499343,0.078248,63857.0,63854.0,0.00123494]
[1724464499648,0.078248,63857.0,63854.0,0.00223494]
[1724464500148,0.078248,63857.0,63845.0,0.3608]
[1724464500149,0.22,63855.0,63845.0,0.078261]
[1724464500336,0.04663228,63846.0,63845.0,0.078261]
[1724464500541,0.3608,63848.0,63846.0,0.078259]
[1724464501649,0.00023494,63853.0,63850.0,0.078254]
[1724464502045,0.00023494,63853.0,63845.0,0.001]
[1724464502046,0.00023494,63853.0,63851.0,0.078254]
[1724464502240,0.00023494,63853.0,63852.0,0.439053]
[1724464503342,0.00023494,63853.0,63852.0,0.440053]
[1724464503550,0.00023494,63853.0,63852.0,0.441053]
[1724464506543,0.04663069,63869.0,63866.0,0.078235]
[1724464506946,0.04663069,63870.0,63867.0,0.078234]
[1724464507252,0.09413069,63871.0,63867.0,0.078234]
[1724464507953,0.17235969,63871.0,63867.0,0.078234]
[1724464508551,0.125729,63871.0,63867.0,0.078234]
[1724464508848,0.04663069,63875.0,63868.0,0.3608]
[1724464509249,0.12485369,63876.0,63868.0,0.3608]
[1724464509849,0.04663069,63876.0,63868.0,0.3608]
[1724464510159,0.04663069,63876.0,63875.0,0.078224]
[1724464510454,0.09603069,63877.0,63875.0,0.078224]
[1724464510857,0.0494,63877.0,63875.0,0.078224]
[1724464511157,0.0494,63877.0,63876.0,0.078223]
[1724464511649,0.0494,63877.0,63871.0,0.078229]
[1724464511650,0.078223,63876.0,63871.0,0.078229]
[1724464512046,0.078223,63876.0,63872.0,0.078227]
[1724464512861,0.078223,63876.0,63875.0,0.001]
[1724464513356,0.078223,63876.0,63872.0,0.079227]
[1724464513759,0.078223,63876.0,63872.0,0.080227]
[1724464514053,0.078223,63876.0,63875.0,0.001]
[1724464514251,0.078223,63876.0,63875.0,0.00096]
[1724464515953,0.0494,63877.0,63875.0,0.079184]
[1724464516259,0.0494,63877.0,63875.0,0.079224]
[1724464516655,0.0494,63877.0,63875.0,0.080224]
[1724464517153,0.0494,63877.0,63875.0,0.079224]
[1724464517355,0.09603069,63877.0,63875.0,0.080224]
[1724464518364,0.04663069,63876.0,63875.0,0.080224]
[1724464519361,0.127622,63877.0,63875.0,0.080224]
[1724464519854,0.078223,63876.0,63875.0,0.080224]
[1724464520564,0.078223,63876.0,63875.0,0.079224]
[1724464520758,0.078223,63876.0,63875.0,0.080224]
[1724464520957,0.078223,63876.0,63875.0,0.079224]
[1724464521162,0.078223,63876.0,63875.0,0.080224]
[1724464522364,0.14043732,63876.0,63875.0,0.080224]
[1724464523461,0.078223,63876.0,63875.0,0.080224]
[1724464523961,0.626126,63876.0,63875.0,0.002]
[1724464524866,0.65148533,63876.0,63875.0,0.002]
[1724464525063,0.65148533,63876.0,63875.0,0.2966]
[1724464525368,0.10358233,63876.0,63875.0,0.2966]
[1724464525569,0.078223,63876.0,63875.0,0.2966]
[1724464525764,0.15603509,63876.0,63875.0,0.2966]
[1724464526164,0.078223,63876.0,63875.0,0.2966]
[1724464529875,0.078223,63876.0,63875.0,0.002]
[1724464531470,0.15604752,63876.0,63875.0,0.002]
[1724464532372,0.078223,63876.0,63875.0,0.002]
[1724464533358,0.1035808,63876.0,63875.0,0.002]
[1724464537769,0.078222,63877.0,63876.0,0.1910192]
[1724464537966,0.10357926,63877.0,63876.0,0.1910192]
[1724464538769,0.15097926,63877.0,63876.0,0.1910192]
[1724464538966,0.15097926,63877.0,63876.0,0.1920192]
[1724464539378,0.15097926,63877.0,63876.0,0.1930192]
[1724464542570,0.18855706,63877.0,63876.0,0.1930192]
[1724464542877,0.70759706,63877.0,63876.0,0.1930192]
[1724464543265,0.67001926,63877.0,63876.0,0.1930192]
[1724464543876,0.70756819,63877.0,63876.0,0.1930192]
[1724464544064,0.67001926,63877.0,63876.0,0.1930192]
[1724464544876,0.74824126,63877.0,63876.0,0.1930192]
[1724464545466,0.74824126,63877.0,63876.0,0.002]
[1724464545670,0.078235,63866.0,63865.0,0.04672359]
[1724464545969,0.74696099,63866.0,63864.0,0.04672359]
[1724464546165,0.15624234,63865.0,63864.0,0.04672359]
[1724464546371,0.23869971,63865.0,63855.0,0.04265236]
[1724464546571,0.15598353,63857.0,63855.0,0.04265236]
[1724464546774,0.1189354,63856.0,63855.0,0.04265236]
[1724464547082,0.1189754,63856.0,63855.0,0.04265236]
[1724464547269,0.06360314,63856.0,63855.0,0.04265236]
[1724464547474,0.06360314,63856.0,63850.0,0.078254]
[1724464547671,0.3608,63851.0,63850.0,0.078254]
[1724464547969,0.4797354,63851.0,63850.0,0.078254]
[1724464548174,0.4797754,63851.0,63850.0,0.078254]
[1724464548481,0.1189754,63851.0,63850.0,0.078254]
[1724464548777,0.06360314,63851.0,63850.0,0.078254]
[1724464548975,0.1189754,63851.0,63850.0,0.078254]
[1724464549184,0.1209754,63851.0,63850.0,0.078254]
[1724464549374,0.00204,63851.0,63850.0,0.078254]
[1724464550380,0.00204,63851.0,63850.0,0.079254]
[1724464551471,0.00204,63851.0,63850.0,0.14174288]
[1724464551669,0.00204,63851.0,63850.0,0.079254]
[1724464551868,0.04880154,63851.0,63850.0,0.001]
[1724464552068,0.48785554,63851.0,63850.0,0.001]
[1724464552270,0.441094,63851.0,63850.0,0.001]
[1724464552577,0.50344272,63851.0,63850.0,0.001]
[1724464552771,0.487494,63851.0,63850.0,0.001]
[1724464553472,0.54974209,63851.0,63850.0,0.001]
[1724464553877,0.487494,63851.0,63850.0,0.001]
[1724464554077,0.54974233,63851.0,63850.0,0.001]
[1724464554782,0.487494,63851.0,63850.0,0.001]
[1724464556271,0.53413645,63851.0,63850.0,0.001]
[1724464559380,0.487494,63851.0,63850.0,0.001]
[1724464561886,0.53413645,63851.0,63850.0,0.001]
[1724464562077,0.487494,63851.0,63850.0,0.001]
[1724464562675,0.126694,63851.0,63850.0,0.001]
[1724464563084,0.487494,63851.0,63850.0,0.001]
[1724464565286,0.487494,63851.0,63850.0,0.00081604]
[1724464566093,1.357334,63851.0,63850.0,0.00081604]
[1724464566281,1.40397645,63851.0,63850.0,0.00081604]
[1724464566479,1.357334,63851.0,63850.0,0.00081604]
[1724464566689,0.957334,63851.0,63850.0,0.00081604]
[1724464567980,1.435588,63851.0,63850.0,0.00081604]
[1724464568188,0.15651,63850.0,63849.0,0.00023494]
[1724464568388,0.7042859,63850.0,63849.0,0.00023494]
[1724464568685,1.05172189,63850.0,63849.0,0.00023494]
[1724464568888,1.05176189,63850.0,63849.0,0.00023494]
[1724464569981,1.05276189,63850.0,63849.0,0.00023494]
[1724464570685,0.10466689,63850.0,63849.0,0.00123494]
[1724464570884,0.079295,63850.0,63849.0,0.00123494]
[1724464576287,0.079295,63850.0,63849.0,0.07949094]
[1724464576288,0.00104,63850.0,63849.0,0.07949094]
[1724464576887,0.06329688,63850.0,63849.0,0.07949094]
[1724464577389,0.00104,63850.0,63849.0,0.07949094]
[1724464581095,0.36184,63850.0,63849.0,0.07949094]
[1724464581396,0.00104,63850.0,63849.0,0.07949094]
[1724464583791,0.079295,63850.0,63849.0,0.00123494]
[1724464585797,0.440095,63850.0,63849.0,0.00123494]
[1724464586994,0.079295,63850.0,63849.0,0.00123494]
[1724464587192,0.440095,63850.0,63849.0,0.00123494]
[1724464589999,0.079295,63850.0,63849.0,0.00123494]
[1724464590194,0.51778993,63850.0,63849.0,0.00123494]
[1724464590411,0.440095,63850.0,63849.0,0.00123494]
[1724464591199,0.51778993,63850.0,63849.0,0.00123494]
[1724464596901,0.46546306,63850.0,63849.0,0.00123494]
[1724464597498,0.55898614,63850.0,63849.0,0.00123494]
[1724464597704,0.63724114,63850.0,63849.0,0.00123494]
[1724464599207,0.54371806,63850.0,63849.0,0.00123494]
[1724464600109,0.63724114,63850.0,63849.0,0.00123494]
[1724464603909,0.54371806,63850.0,63849.0,0.00123494]
[1724464605208,0.63723357,63850.0,63849.0,0.00123494]
[1724464605714,0.63723546,63850.0,63849.0,0.00123494]
[1724464607706,0.54371995,63850.0,63849.0,0.00123494]
[1724464608709,0.18291995,63850.0,63849.0,0.00123494]
[1724464608911,0.54371995,63850.0,63849.0,0.00123494]
[1724464610814,0.46546495,63850.0,63849.0,0.00123494]
[1724464613124,1.50707546,63850.0,63849.0,0.00123494]
[1724464613323,1.41355995,63850.0,63849.0,0.00123494]
[1724464613617,1.44761332,63850.0,63849.0,0.00123494]
[1724464615223,1.42198225,63850.0,63849.0,0.00123494]
[1724464615415,1.44735465,63850.0,63849.0,0.00123494]
[1724464615816,1.08655465,63850.0,63849.0,0.00123494]
[1724464616017,1.80815465,63850.0,63849.0,0.00123494]
[1724464617125,1.80815465,63850.0,63849.0,1e-08]
[1724464617325,0.078265,63842.0,63841.0,0.00018373]
[1724464617525,0.6844374,63842.0,63841.0,0.00018373]
[1724464618028,0.6844774,63842.0,63841.0,0.00018373]
[1724464618424,0.4644774,63842.0,63841.0,0.00318373]
[1724464618821,0.4644774,63842.0,63841.0,0.00518373]
[1724464620024,0.4644781,63842.0,63841.0,0.00518373]
[1724464621627,0.3862131,63842.0,63841.0,0.00518373]
[1724464621830,0.3862131,63842.0,63841.0,0.08344973]
[1724464621831,0.0254131,63842.0,63841.0,0.08344973]
[1724464622026,0.07788306,63842.0,63841.0,0.08344973]
[1724464622325,4e-05,63842.0,63841.0,0.08344973]
[1724464622530,0.04671812,63842.0,63841.0,0.52197455]
[1724464622736,0.00023494,63848.0,63842.0,0.078265]
[1724464622737,0.04671812,63843.0,63842.0,0.078265]
[1724464622918,0.04671861,63844.0,63843.0,0.078264]
[1724464623123,0.04671861,63844.0,63843.0,0.12515031]
[1724464623333,0.06228832,63847.0,63846.0,0.07826]
[1724464625227,0.36695492,63848.0,63847.0,0.078259]
[1724464626837,0.00615492,63848.0,63847.0,0.078259]
[1724464627731,0.00023494,63848.0,63847.0,0.948139]
[1724464628121,0.04695095,63848.0,63847.0,0.948139]
[1724464628530,0.04795095,63848.0,63847.0,0.948139]
[1724464628728,0.00123494,63848.0,63847.0,0.948139]
[1724464629136,0.04794506,63848.0,63847.0,0.948139]
[1724464629333,0.00123494,63848.0,63847.0,0.948139]
[1724464630125,0.00123494,63848.0,63847.0,1.01061116]
[1724464630332,0.00123494,63848.0,63847.0,0.948139]
[1724464631134,0.00123494,63848.0,63847.0,1.0105882]
[1724464631532,0.00123494,63848.0,63847.0,0.948139]
[1724464631831,0.00123494,63848.0,63847.0,1.0105882]
[1724464632237,0.00123494,63848.0,63847.0,0.948139]
[1724464633632,0.00123494,63848.0,63847.0,0.548139]
[1724464633939,0.00123494,63848.0,63847.0,0.5949477]
[1724464634130,0.00123494,63848.0,63847.0,0.078259]
[1724464634532,0.00123494,63848.0,63847.0,0.12506554]
[1724464635445,0.00123494,63848.0,63847.0,0.078259]
[1724464640943,0.00123494,63848.0,63847.0,0.439059]
[1724464641141,0.04671089,63850.0,63849.0,0.078256]
[1724464641333,0.3608,63858.0,63847.0,0.83176]
[1724464641334,0.04671089,63854.0,63847.0,0.83176]
[1724464641533,0.04671089,63856.0,63847.0,0.3608]
[1724464641736,0.04671089,63857.0,63856.0,0.078248]
[1724464642231,0.006142,63858.0,63857.0,0.078247]
[1724464642436,0.04671089,63859.0,63858.0,0.078245]
[1724464642632,0.04671089,63859.0,63854.0,0.3608]
[1724464642633,0.04671089,63860.0,63854.0,0.3608]
[1724464642959,0.04671089,63861.0,63854.0,0.3608]
[1724464643140,0.04671089,63862.0,63861.0,0.078242]
[1724464643340,0.00023494,63863.0,63862.0,0.07824]
[1724464643341,0.04694583,63863.0,63862.0,0.07824]
[1724464643536,0.00023494,63863.0,63862.0,0.0782]
[1724464645136,0.00023494,63863.0,63862.0,0.0792]
[1724464645336,0.00023494,63863.0,63862.0,0.0802]
[1724464646143,0.00023494,63863.0,63862.0,0.441]
[1724464646936,0.00023494,63863.0,63862.0,0.0802]
[1724464649048,0.00023494,63863.0,63862.0,0.128]
[1724464650952,0.00023494,63863.0,63862.0,0.99776]
[1724464651756,0.00023494,63863.0,63862.0,1.04454722]
[1724464652050,0.00023494,63863.0,63862.0,0.99776]
[1724464659369,0.04671089,63869.0,63868.0,0.078233]
[1724464659568,0.00605844,63871.0,63868.0,0.3608]
[1724464659872,0.06228016,63872.0,63871.0,0.078229]
[1724464660065,0.06228016,63873.0,63872.0,0.078228]
[1724464660261,0.06228016,63873.0,63868.0,0.3608]
[1724464660262,0.078231,63870.0,63868.0,0.439033]
[1724464660461,0.078231,63870.0,63868.0,0.078233]
[1724464660662,0.14048754,63870.0,63868.0,0.078233]
[1724464660858,0.14048754,63870.0,63868.0,0.079233]
[1724464661273,4e-05,63869.0,63868.0,0.079233]
[1724464661967,4e-05,63869.0,63868.0,0.080233]
[1724464664769,0.11928865,63869.0,63868.0,0.07171234]
[1724464667865,4e-05,63869.0,63868.0,0.07171234]
[1724464669373,0.06234396,63869.0,63868.0,0.07171234]
[1724464669969,4e-05,63869.0,63868.0,0.07171234]
[1724464670467,0.06234396,63869.0,63868.0,0.07171234]
[1724464670670,0.06234396,63869.0,63868.0,0.11850912]
[1724464671477,4e-05,63869.0,63868.0,0.07171234]
[1724464671677,0.049,63877.0,63868.0,0.07171234]
[1724464671678,0.10903193,63892.0,63879.0,0.078226]
[1724464671980,0.02535291,63891.0,63890.0,0.298213]
[1724464672166,0.07801083,63892.0,63890.0,0.298213]
[1724464672368,0.06234392,63892.0,63891.0,0.078212]
[1724464672882,0.3608,63892.0,63891.0,0.12503718]
[1724464673172,0.3608,63892.0,63887.0,0.04682518]
[1724464673375,0.3608,63892.0,63879.0,0.00123494]
[1724464673376,0.0623502,63888.0,63884.0,0.04682518]
[1724464673680,0.4231502,63886.0,63881.0,0.078224]
[1724464673973,0.10903193,63883.0,63881.0,0.078224]
[1724464674182,0.0253532,63882.0,63881.0,0.078224]
[1724464674673,0.05555869,63882.0,63881.0,0.078224]
[1724464675378,0.0253532,63882.0,63881.0,0.078224]
[1724464675773,0.02535393,63882.0,63881.0,0.078224]
[1724464675967,0.41636029,63882.0,63881.0,0.078224]
[1724464676272,0.52539222,63882.0,63881.0,0.079224]
[1724464676766,0.3608,63882.0,63881.0,0.079224]
[1724464677869,0.42310564,63882.0,63881.0,0.001]
[1724464678670,0.42310564,63882.0,63881.0,0.002]
[1724464678971,0.42310564,63882.0,63881.0,0.001]
[1724464679279,0.42310564,63882.0,63881.0,0.002]
[1724464679578,0.3608,63882.0,63881.0,0.002]
[1724464679779,0.3608,63882.0,63881.0,0.080225]
[1724464681368,0.3608,63882.0,63881.0,0.078225]
[1724464681369,0.42310564,63882.0,63881.0,0.078225]
[1724464681571,0.42310564,63882.0,63881.0,0.080225]
[1724464684076,0.3608,63882.0,63881.0,0.079225]
[1724464684584,0.3608,63882.0,63881.0,0.002]
[1724464684769,0.3608,63882.0,63881.0,0.001]
[1724464685076,0.3608,63882.0,63881.0,0.002]
[1724464685077,0.908624,63882.0,63881.0,0.002]
[1724464685271,0.908624,63882.0,63881.0,0.001]
[1724464685471,0.908624,63882.0,63881.0,0.002]
[1724464686071,1.308624,63882.0,63881.0,0.002]
[1724464686480,1.33398137,63882.0,63881.0,0.002]
[1724464686871,1.33398137,63882.0,63881.0,0.001]
[1724464687482,1.33398137,63882.0,63881.0,0.002]
[1724464687780,0.46964,63881.0,63869.0,0.3253]
[1724464688073,0.78615792,63882.0,63869.0,0.3253]
[1724464688074,0.3608,63870.0,63869.0,0.403539]
[1724464688266,0.3608,63870.0,63869.0,0.078239]
[1724464688579,0.36084,63870.0,63869.0,0.078239]
[1724464688877,0.36084,63870.0,63866.0,0.04682518]
[1724464689080,0.04674018,63869.0,63866.0,0.04682518]
[1724464689577,0.04674018,63869.0,63865.0,0.04682518]
[1724464689781,4e-05,63867.0,63865.0,0.12506918]
[1724464690372,4e-05,63866.0,63865.0,0.12506918]
[1724464690566,4e-05,63866.0,63865.0,0.078244]
[1724464690767,4e-05,63866.0,63865.0,0.12606529]
[1724464691674,4e-05,63866.0,63865.0,0.12706529]
[1724464691675,0.00404,63866.0,63865.0,0.12706529]
[1724464691976,0.00404,63866.0,63865.0,0.080244]
[1724464693382,0.00304,63866.0,63865.0,0.080244]
[1724464693973,0.00304,63866.0,63865.0,0.595264]
[1724464694179,0.00304,63866.0,63865.0,0.596264]
[1724464694574,0.00204,63866.0,63865.0,0.596264]
[1724464696373,0.00204,63866.0,63865.0,0.12706651]
[1724464696573,0.00204,63866.0,63865.0,0.080244]
[1724464698084,0.36284,63866.0,63865.0,0.080244]
[1724464698481,0.40958018,63866.0,63865.0,0.080244]
[1724464698783,0.40958018,63866.0,63865.0,0.12706496]
[1724464700690,0.40858018,63866.0,63865.0,0.12606496]
[1724464700882,0.40958018,63866.0,63865.0,0.12706496]
[1724464701079,0.36284,63866.0,63865.0,0.12706496]
[1724464701278,0.36284,63866.0,63865.0,0.080244]
[1724464702281,0.00204,63866.0,63865.0,0.080244]
[1724464703195,0.00204,63866.0,63865.0,0.079244]
[1724464703486,0.00204,63866.0,63865.0,0.12606496]
[1724464704986,0.00204,63866.0,63865.0,0.079244]
[1724464705386,0.36284,63866.0,63865.0,0.079244]
[1724464706085,0.36284,63866.0,63865.0,0.12606496]
[1724464706486,0.36184,63866.0,63865.0,0.079244]
[1724464706785,0.00204,63866.0,63865.0,0.12606496]
[1724464707290,0.00104,63866.0,63865.0,0.078244]
[1724464707485,0.00204,63866.0,63865.0,0.078244]
[1724464712287,0.00204,63866.0,63865.0,0.14075432]
[1724464713502,0.06336118,63866.0,63865.0,0.14075432]
[1724464713890,0.06436118,63866.0,63865.0,0.14075432]
[1724464714191,0.00204,63866.0,63865.0,0.078244]
[1724464714687,0.128583,63866.0,63865.0,0.078244]
[1724464714997,0.488383,63866.0,63865.0,0.1251514]
[1724464715190,0.489383,63866.0,63865.0,0.1251514]
[1724464716991,0.56728447,63866.0,63865.0,0.079244]
[1724464717291,0.489383,63866.0,63865.0,0.079244]
[1724464718489,0.56746913,63866.0,63865.0,0.079244]
[1724464720697,0.56646913,63866.0,63865.0,0.079244]
[1724464720894,0.56746913,63866.0,63865.0,0.078244]
[1724464721097,0.56746913,63866.0,63865.0,0.079244]
[1724464721490,0.56646913,63866.0,63865.0,0.079244]
[1724464721708,0.56746913,63866.0,63865.0,0.080244]
[1724464721993,0.57352163,63866.0,63865.0,0.080244]
[1724464723093,0.078246,63864.0,63863.0,0.00023494]
[1724464723501,0.10360943,63864.0,63863.0,0.00023494]
[1724464723897,0.10364943,63864.0,63863.0,0.00023494]
[1724464724591,0.12664943,63864.0,63863.0,0.00223494]
[1724464726098,0.12664943,63864.0,63863.0,0.00123494]
[1724464726393,0.12364943,63864.0,63863.0,0.00223494]
[1724464726794,0.59340943,63864.0,63863.0,0.00223494]
[1724464726993,0.07825,63861.0,63855.0,0.1251644]
[1724464727200,0.3608,63856.0,63855.0,0.078257]
[1724464727696,0.36084,63856.0,63855.0,0.078257]
[1724464727995,0.078258,63855.0,63850.0,0.078262]
[1724464728300,0.078258,63855.0,63849.0,0.00023494]
[1724464728301,0.4231755,63851.0,63849.0,0.00023494]
[1724464729211,0.0624155,63850.0,63849.0,0.00023494]
[1724464729600,4e-05,63850.0,63849.0,0.00023494]
[1724464729795,4e-05,63850.0,63849.0,0.07849894]
[1724464730598,4e-05,63850.0,63849.0,0.07949894]
[1724464730796,0.00504,63850.0,63849.0,0.07949894]
[1724464732098,0.01104,63850.0,63849.0,0.07949894]
[1724464740397,0.05775558,63850.0,63849.0,0.07949894]
[1724464740598,0.05775558,63850.0,63849.0,0.00123494]
[1724464740802,0.13601858,63850.0,63849.0,0.00123494]
[1724464741609,0.089303,63850.0,63849.0,0.00123494]
[1724464743608,1.10088,63850.0,63843.0,0.0469074]
[1724464743901,0.42312188,63844.0,63841.0,0.00018373]
[1724464744111,0.42312188,63842.0,63841.0,0.00018373]
[1724464744309,0.50139488,63842.0,63841.0,0.00018373]
[1724464744710,0.50143488,63842.0,63841.0,0.00018373]
[1724464745615,0.50143488,63842.0,63841.0,0.00318373]
[1724464746010,0.50143488,63842.0,63841.0,0.00618373]
[1724464747508,0.439113,63842.0,63841.0,0.00618373]
[1724464749213,0.50143488,63842.0,63841.0,0.00618373]
[1724464749804,0.439113,63842.0,63841.0,0.00618373]
[1724464752913,0.44525592,63842.0,63841.0,0.00618373]
[1724464753614,0.08445592,63842.0,63841.0,0.00618373]
[1724464753809,0.80605592,63842.0,63841.0,0.00618373]
[1724464754411,0.36084,63842.0,63841.0,0.08445773]
[1724464754717,4e-05,63842.0,63841.0,0.44525773]
[1724464754920,0.06232907,63844.0,63843.0,0.078271]
[1724464755115,0.00023494,63848.0,63844.0,0.07827]
[1724464755116,0.06232907,63845.0,63844.0,0.07827]
[1724464755413,0.06232907,63845.0,63843.0,0.22]
[1724464755414,0.06232907,63846.0,63845.0,0.078269]
[1724464755612,0.06232907,63847.0,63846.0,0.078268]
[1724464756007,0.00023494,63848.0,63847.0,0.078267]
[1724464756418,0.04699692,63848.0,63847.0,1.308947]
[1724464756611,0.00023494,63848.0,63847.0,1.308947]
[1724464757119,0.04676198,63850.0,63847.0,1.23068]
[1724464757422,0.04676143,63852.0,63849.0,0.22]
[1724464757620,0.04676143,63852.0,63851.0,0.078262]
[1724464758016,0.04676143,63853.0,63851.0,0.078262]
[1724464758216,0.3608,63859.0,63855.0,0.078257]
[1724464758217,0.04676473,63856.0,63855.0,0.078257]
[1724464758415,0.04676473,63857.0,63855.0,0.078257]
[1724464759512,0.04676473,63858.0,63857.0,0.078254]
[1724464759827,0.04676473,63858.0,63857.0,0.12506046]
[1724464760214,0.04676473,63858.0,63857.0,0.078254]
[1724464760611,0.04676473,63859.0,63857.0,0.078254]
[1724464760811,0.04676473,63859.0,63858.0,0.078253]
[1724464761323,0.00023494,63861.0,63857.0,0.001]
[1724464761519,0.00023494,63861.0,63860.0,0.04677784]
[1724464762420,0.00023494,63861.0,63860.0,0.04676721]
[1724464762925,0.00023494,63861.0,63860.0,0.07825]
[1724464763315,0.00023494,63861.0,63860.0,0.12501365]
[1724464763916,0.01923494,63861.0,63860.0,0.12701365]
[1724464764527,0.01923494,63861.0,63860.0,0.08025]
[1724464772026,0.01923494,63861.0,63860.0,0.002]
[1724464772830,0.09748094,63861.0,63860.0,0.002]
[1724464775434,0.14628094,63861.0,63860.0,0.002]
[1724464776839,0.86788094,63861.0,63860.0,0.002]
[1724464777144,0.078252,63859.0,63856.0,0.078252]
[1724464777335,0.126653,63858.0,63856.0,0.078252]
[1724464777842,0.0484,63858.0,63856.0,0.078252]
[1724464779139,0.0484,63858.0,63856.0,0.079252]
[1724464779535,0.008,63858.0,63856.0,0.002]
[1724464779741,0.008,63858.0,63857.0,0.078254]
[1724464779938,0.014,63858.0,63857.0,0.078254]
[1724464780141,0.016,63858.0,63857.0,0.078254]
[1724464780844,0.018,63858.0,63857.0,0.078254]
[1724464782448,0.017,63858.0,63857.0,0.079254]